fUST/lending_fUST_20250627
["ID","MTS","AMOUNT","RATE_DAILY","PERIOD"]
[367937901,1750972240092,-460.0,0.00021643,2]
[367937902,1750972240102,-3571.99,0.00021643,2]
[367937903,1750972240111,-460.0,0.00021643,2]
[367937904,1750972240121,-477.93,0.00021643,2]
[367937905,1750972240131,-460.0,0.00021643,2]
[367937906,1750972240140,-460.0,0.00021643,2]
[367937907,1750972240150,-460.0,0.00021643,2]
[367937909,1750972240164,-460.0,0.00021643,2]
[367937910,1750972240173,-474.85,0.00021643,2]
[367937911,1750972240183,-5271.94,0.00021643,2]
[367937913,1750972240192,-460.0,0.00021643,2]
[367937914,1750972240204,-460.0,0.00021643,2]
[367937915,1750972240213,-460.0,0.00021643,2]
[367937916,1750972240222,-460.0,0.00021643,2]
[367937917,1750972240232,-805.1,0.00021643,2]
[367937918,1750972240242,-460.0,0.00021643,2]
[367937919,1750972240251,-460.0,0.00021643,2]
[367937921,1750972240261,-460.0,0.00021643,2]
[367937923,1750972240270,-460.0,0.00021643,2]
[367937924,1750972240280,-2400.3,0.00021643,2]
[367937925,1750972240290,-460.0,0.00021643,2]
[367937926,1750972240299,-460.0,0.00021643,2]
[367937927,1750972240308,-460.0,0.00021643,2]
[367937928,1750972240318,-741.3,0.00021643,2]
[367937929,1750972240328,-479.8950424,0.00021643,2]
[367937930,1750972240338,-366.70889909,0.00021643,2]
[367937931,1750972240351,-460.0,0.00021643,2]
[367937932,1750972240360,-460.0,0.00021643,2]
[367937933,1750972240370,-338.11376229,0.00021643,2]
[367937934,1750972240379,-601.94850018,0.00021643,2]
[367937935,1750972240389,-762.78,0.00021643,2]
[367937936,1750972240398,-460.0,0.00021643,2]
[367937937,1750972240408,-1591.47,0.00021643,2]
[367937938,1750972240417,-460.0,0.00021643,2]
[367937940,1750972240427,-460.0,0.00021643,2]
[367937941,1750972240436,-1829.59,0.00021643,2]
[367937942,1750972240445,-460.0,0.00021643,2]
[367937943,1750972240455,-1408.7,0.00021643,2]
[367937944,1750972240464,-460.0,0.00021643,2]
[367937945,1750972240473,-372.74742083,0.00021643,2]
[367937946,1750972240483,-1494.14,0.00021672,2]
[367937947,1750972240493,-1494.14,0.00021816,2]
[367937948,1750972240502,-13392.7343875,0.00021817,2]
[367937949,1750972240512,-200.0,0.0002186,4]
[367937950,1750972240522,-6764.50678833,0.000219,2]
[367937951,1750972240531,-543.58679873,0.000219,6]
[367937952,1750972240541,-2256.12,0.000219,2]
[367937953,1750972240550,-207.4,0.00021904,2]
[367937954,1750972240560,-1494.14,0.00021916,2]
[367937955,1750972240569,-1494.14,0.00021916,2]
[367937956,1750972240579,-1494.14,0.00021916,2]
[367937957,1750972240588,-1494.14,0.00021916,2]
[367937959,1750972240598,-1494.14,0.00021916,2]
[367937961,1750972240608,-1494.14,0.00021916,2]
[367937962,1750972240617,-1494.14,0.00021916,2]
[367937963,1750972240627,-1494.14,0.00021916,2]
[367937964,1750972240636,-1494.14,0.00021916,2]
[367937965,1750972240646,-1494.14,0.00021916,2]
[367937966,1750972240655,-1494.20618838,0.00021916,2]
[367937967,1750972240664,-460.0,0.00021917,2]
[367937968,1750972240674,-460.0,0.00021917,2]
[367937969,1750972240683,-986.02,0.00021917,2]
[367937970,1750972240693,-337.24719096,0.00021917,2]
[367937971,1750972240703,-272.42996716,0.00021917,2]
[367937972,1750972240712,-460.0,0.00021917,2]
[367937973,1750972240722,-460.0,0.00021917,2]
[367937974,1750972240732,-460.0,0.00021917,2]
[367937975,1750972240743,-512.88,0.00021917,2]
[367937976,1750972240753,-460.0,0.00021917,2]
[367937977,1750972240763,-460.0,0.00021917,2]
[367937978,1750972240772,-460.0,0.00021917,2]
[367937979,1750972240781,-394.00516856,0.00021917,2]
[367937980,1750972240791,-717.28,0.00021917,2]
[367937981,1750972240803,-383.91248654,0.00021917,2]
[367937982,1750972240813,-522.22415435,0.00021917,2]
[367937983,1750972240822,-460.0,0.00021917,2]
[367937984,1750972240832,-622.8,0.00021917,2]
[367937985,1750972240842,-460.0,0.00021917,2]
[367937986,1750972240851,-598.48623069,0.00021917,2]
[367937987,1750972240861,-460.0,0.00021917,2]
[367937988,1750972240871,-460.0,0.00021917,2]
[367937989,1750972240880,-460.0,0.00021917,2]
[367937990,1750972240891,-460.0,0.00021917,2]
[367937991,1750972240900,-460.0,0.00021917,2]
[367937992,1750972240910,-460.0,0.00021917,2]
[367937993,1750972240920,-460.0,0.00021917,2]
[367937994,1750972240930,-460.0,0.00021917,2]
[367937995,1750972240940,-460.0,0.00021917,2]
[367937996,1750972240950,-460.0,0.00021917,2]
[367937997,1750972240960,-460.0,0.00021917,2]
[367937998,1750972240970,-460.0,0.00021917,2]
[367937999,1750972240981,-460.0,0.00021917,2]
[367938000,1750972240991,-500.0,0.00021917,2]
[367938001,1750972241000,-460.0,0.00021917,2]
[367938002,1750972241010,-460.0,0.00021917,2]
[367938003,1750972241020,-496.72,0.00021917,2]
[367938004,1750972241030,-460.0,0.00021917,2]
[367938005,1750972241040,-1290.15,0.00021917,2]
[367938006,1750972241049,-467.55003261,0.00021917,2]
[367938007,1750972241060,-460.0,0.00021917,2]
[367938008,1750972241070,-460.0,0.00021917,2]
[367938009,1750972241079,-460.0,0.00021917,2]
[367938010,1750972241089,-460.0,0.00021917,2]
[367938011,1750972241099,-460.0,0.00021917,2]
[367938012,1750972241110,-460.0,0.00021917,2]
[367938013,1750972241119,-477.37159032,0.00021917,2]
[367938014,1750972241129,-320.35433173,0.00021917,2]
[367938015,1750972241138,-460.0,0.00021917,2]
[367938016,1750972241148,-460.0,0.00021917,2]
[367938017,1750972241161,-460.0,0.00021917,2]
[367938018,1750972241171,-385.09385702,0.00021917,2]
[367938019,1750972241180,-460.0,0.00021917,2]
[367938020,1750972241190,-460.0,0.00021917,2]
[367938021,1750972241200,-678.3,0.00021917,2]
[367938022,1750972241211,-390.0,0.00021917,2]
[367938023,1750972241221,-460.0,0.00021917,2]
[367938024,1750972241232,-545.01,0.00021917,2]
[367938025,1750972241242,-460.0,0.00021917,2]
[367938026,1750972241251,-460.0,0.00021917,2]
[367938027,1750972241261,-467.1192298,0.00021917,2]
[367938028,1750972241271,-460.0,0.00021917,2]
[367938029,1750972241280,-460.0,0.00021917,2]
[367938030,1750972241290,-460.0,0.00021917,2]
[367938031,1750972241299,-460.0,0.00021917,2]
[367938032,1750972241309,-460.0,0.00021917,2]
[367938033,1750972241322,-460.0,0.00021917,2]
[367938034,1750972241331,-460.0,0.00021917,2]
[367938035,1750972241341,-460.0,0.00021917,2]
[367938036,1750972241350,-460.0,0.00021917,2]
[367938037,1750972241359,-460.0,0.00021917,2]
[367938038,1750972241368,-460.0,0.00021917,2]
[367938039,1750972241378,-500.0,0.00021917,2]
[367938040,1750972241388,-959.21,0.00021917,2]
[367938041,1750972241398,-460.0,0.00021917,2]
[367938042,1750972241408,-460.0,0.00021917,2]
[367938043,1750972241418,-490.39937732,0.00021917,2]
[367938044,1750972241428,-460.0,0.00021917,2]
[367938045,1750972241437,-786.79,0.00021917,2]
[367938046,1750972241448,-340.97,0.00021917,2]
[367938047,1750972241458,-460.0,0.00021917,2]
[367938048,1750972241467,-460.0,0.00021917,2]
[367938049,1750972241477,-460.0,0.00021917,2]
[367938050,1750972241487,-460.0,0.00021917,2]
[367938051,1750972241496,-519.86,0.00021917,2]
[367938052,1750972241505,-460.0,0.00021917,2]
[367938053,1750972241515,-460.0,0.00021917,2]
[367938054,1750972241524,-460.0,0.00021917,2]
[367938055,1750972241534,-460.0,0.00021917,2]
[367938056,1750972241544,-460.0,0.00021917,2]
[367938057,1750972241553,-488.65228825,0.00021917,2]
[367938058,1750972241563,-460.0,0.00021917,2]
[367938059,1750972241573,-460.0,0.00021917,2]
[367938060,1750972241583,-460.0,0.00021917,2]
[367938061,1750972241592,-417.5763842,0.00021917,2]
[367938062,1750972241602,-460.0,0.00021917,2]
[367938063,1750972241611,-469.78,0.00021917,2]
[367938064,1750972241621,-460.0,0.00021917,2]
[367938065,1750972241631,-460.0,0.00021917,2]
[367938066,1750972241640,-460.0,0.00021917,2]
[367938067,1750972241650,-500.0,0.00021917,2]
[367938068,1750972241659,-500.0,0.00021917,2]
[367938069,1750972241669,-463.209928,0.00021917,2]
[367938070,1750972241678,-460.0,0.00021917,2]
[367938071,1750972241688,-460.0,0.00021917,2]
[367938072,1750972241699,-460.0,0.00021917,2]
[367938073,1750972241717,-505.49584676,0.00021917,2]
[367938074,1750972241729,-460.0,0.00021917,2]
[367938075,1750972241739,-151.0,0.00021917,2]
[367938076,1750972241749,-546.97,0.00021917,2]
[367938077,1750972241759,-151.0,0.00021917,2]
[367938078,1750972241769,-460.0,0.00021917,2]
[367938079,1750972241780,-460.0,0.00021917,2]
[367938080,1750972241791,-460.0,0.00021917,2]
[367938081,1750972241801,-460.0,0.00021917,2]
[367938082,1750972241814,-460.0,0.00021917,2]
[367938083,1750972241825,-709.44,0.00021917,2]
[367938084,1750972241835,-460.0,0.00021917,2]
[367938085,1750972241844,-151.0,0.00021917,2]
[367938086,1750972241854,-460.0,0.00021917,2]
[367938087,1750972241864,-633.99,0.00021917,2]
[367938088,1750972241874,-151.0,0.00021917,2]
[367938089,1750972241884,-460.0,0.00021917,2]
[367938090,1750972241894,-460.0,0.00021917,2]
[367938091,1750972241904,-460.0,0.00021917,2]
[367938092,1750972241913,-460.0,0.00021917,2]
[367938093,1750972241923,-151.0,0.00021917,2]
[367938094,1750972241932,-460.0,0.00021917,2]
[367938095,1750972241942,-151.0,0.00021917,2]
[367938096,1750972241952,-482.52,0.00021917,2]
[367938097,1750972241962,-460.0,0.00021917,2]
[367938098,1750972241972,-460.0,0.00021917,2]
[367938099,1750972241981,-460.0,0.00021917,2]
[367938100,1750972241992,-460.0,0.00021917,2]
[367938101,1750972242002,-296.118955,0.00021917,2]
[367938102,1750972242012,-460.0,0.00021917,2]
[367938103,1750972242022,-460.0,0.00021917,2]
[367938104,1750972242031,-1018.24,0.00021917,2]
[367938105,1750972242041,-460.0,0.00021917,2]
[367938106,1750972242051,-460.0,0.00021917,2]
[367938107,1750972242061,-460.0,0.00021917,2]
[367938108,1750972242071,-460.0,0.00021917,2]
[367938109,1750972242081,-535.84,0.00021917,2]
[367938110,1750972242090,-305.94169269,0.00021917,2]
[367938111,1750972242100,-494.68,0.00021917,2]
[367938112,1750972242110,-460.0,0.00021917,2]
[367938113,1750972242119,-460.0,0.00021917,2]
[367938114,1750972242129,-460.0,0.00021917,2]
[367938115,1750972242139,-460.0,0.00021917,2]
[367938116,1750972242148,-460.0,0.00021917,2]
[367938117,1750972242159,-1172.89,0.00021917,2]
[367938118,1750972242170,-460.0,0.00021917,2]
[367938119,1750972242180,-151.0,0.00021917,2]
[367938120,1750972242190,-460.0,0.00021917,2]
[367938121,1750972242200,-460.0,0.00021917,2]
[367938122,1750972242210,-460.0,0.00021917,2]
[367938123,1750972242220,-3271.98,0.00021917,2]
[367938124,1750972242230,-631.57,0.00021917,2]
[367938125,1750972242240,-922.08,0.00021917,2]
[367938126,1750972242251,-235.9965194,0.00021917,2]
[367938127,1750972242261,-460.0,0.00021917,2]
[367938128,1750972242270,-1119.69,0.00021917,2]
[367938129,1750972242280,-460.0,0.00021917,2]
[367938130,1750972242290,-460.0,0.00021917,2]
[367938131,1750972242299,-438.27894563,0.00021917,2]
[367938132,1750972242309,-460.0,0.00021917,2]
[367938133,1750972242319,-403.58674974,0.00021917,2]
[367938134,1750972242329,-460.0,0.00021917,2]
[367938135,1750972242339,-460.0,0.00021917,2]
[367938136,1750972242349,-151.0,0.00021917,2]
[367938137,1750972242358,-460.0,0.00021917,2]
[367938138,1750972242368,-151.0,0.00021917,2]
[367938139,1750972242378,-460.0,0.00021917,2]
[367938140,1750972242387,-460.0,0.00021917,2]
[367938141,1750972242397,-460.0,0.00021917,2]
[367938142,1750972242407,-928.23,0.00021917,2]
[367938143,1750972242416,-460.0,0.00021917,2]
[367938144,1750972242426,-460.0,0.00021917,2]
[367938145,1750972242436,-629.1,0.00021917,2]
[367938146,1750972242445,-445.61394413,0.00021917,2]
[367938147,1750972242456,-460.0,0.00021917,2]
[367938148,1750972242466,-360.0,0.00021917,2]
[367938149,1750972242476,-460.0,0.00021917,2]
[367938150,1750972242485,-4287.61,0.00021917,2]
[367938151,1750972242495,-1921.64,0.00021917,2]
[367938152,1750972242505,-460.0,0.00021917,2]
[367938153,1750972242739,-419.64771371,0.00021917,2]
[367938154,1750972242749,-460.0,0.00021917,2]
[367938155,1750972242759,-460.0,0.00021917,2]
[367938156,1750972242768,-724.39,0.00021917,2]
[367938157,1750972242777,-569.414171,0.00021917,2]
[367938158,1750972242788,-460.0,0.00021917,2]
[367938159,1750972242797,-460.0,0.00021917,2]
[367938160,1750972242807,-460.0,0.00021917,2]
[367938161,1750972242816,-460.0,0.00021917,2]
[367938162,1750972242826,-591.14,0.00021917,2]
[367938163,1750972242835,-460.0,0.00021917,2]
[367938164,1750972242845,-569.414171,0.00021917,2]
[367938165,1750972242854,-460.0,0.00021917,2]
[367938166,1750972242863,-460.0,0.00021917,2]
[367938167,1750972242873,-460.0,0.00021917,2]
[367938168,1750972242883,-460.0,0.00021917,2]
[367938169,1750972242892,-558.36,0.00021917,2]
[367938170,1750972242901,-460.0,0.00021917,2]
[367938171,1750972242911,-1314.36,0.00021917,2]
[367938173,1750972242920,-460.0,0.00021917,2]
[367938174,1750972242930,-2392.17,0.00021917,2]
[367938175,1750972242939,-2293.78,0.00021917,2]
[367938176,1750972242952,-460.0,0.00021917,2]
[367938177,1750972242962,-460.0,0.00021917,2]
[367938178,1750972242971,-460.0,0.00021917,2]
[367938179,1750972242980,-460.0,0.00021917,2]
[367938180,1750972242990,-530.78,0.00021917,2]
[367938181,1750972243000,-3435.38,0.00021917,2]
[367938183,1750972243009,-460.0,0.00021917,2]
[367938185,1750972243019,-151.0,0.00021917,2]
[367938187,1750972243028,-1036.93,0.00021917,2]
[367938189,1750972243037,-460.0,0.00021917,2]
[367938191,1750972243046,-533.41,0.00021917,2]
[367938193,1750972243055,-1648.17,0.00021917,2]
[367938195,1750972243065,-460.0,0.00021917,2]
[367938197,1750972243074,-460.0,0.00021917,2]
[367938199,1750972243083,-1163.62,0.00021917,2]
[367938200,1750972243092,-460.0,0.00021917,2]
[367938202,1750972243101,-460.0,0.00021917,2]
[367938204,1750972243111,-679.78,0.00021917,2]
[367938206,1750972243120,-460.0,0.00021917,2]
[367938208,1750972243130,-739.43,0.00021917,2]
[367938209,1750972243139,-753.72,0.00021917,2]
[367938210,1750972243148,-460.0,0.00021917,2]
[367938211,1750972243160,-568.52,0.00021917,2]
[367938212,1750972243169,-460.0,0.00021917,2]
[367938213,1750972243178,-1058.35,0.00021917,2]
[367938214,1750972243187,-654.62,0.00021917,2]
[367938215,1750972243196,-460.0,0.00021917,2]
[367938216,1750972243210,-525.83,0.00021917,2]
[367938217,1750972243219,-460.0,0.00021917,2]
[367938218,1750972243229,-505.32,0.00021917,2]
[367938219,1750972243240,-738.87,0.00021917,2]
[367938220,1750972243250,-1519.04,0.00021917,2]
[367938221,1750972243259,-472.56,0.00021917,2]
[367938222,1750972243268,-460.0,0.00021917,2]
[367938223,1750972243278,-437.8491313,0.00021917,2]
[367938224,1750972243288,-550.44,0.00021917,2]
[367938225,1750972243297,-460.0,0.00021917,2]
[367938226,1750972243307,-623.07,0.00021917,2]
[367938227,1750972243316,-545.43,0.00021917,2]
[367938228,1750972243326,-460.0,0.00021917,2]
[367938229,1750972243336,-460.0,0.00021917,2]
[367938230,1750972243345,-579.54,0.00021917,2]
[367938231,1750972243355,-624.14,0.00021917,2]
[367938232,1750972243364,-821.41,0.00021917,2]
[367938233,1750972243374,-842.54,0.00021917,2]
[367938234,1750972243383,-483.07,0.00021917,2]
[367938235,1750972243392,-460.0,0.00021917,2]
[367938236,1750972243402,-855.88,0.00021917,2]
[367938237,1750972243411,-460.0,0.00021917,2]
[367938238,1750972243421,-2294.32,0.00021917,2]
[367938239,1750972243430,-1069.97,0.00021917,2]
[367938240,1750972243440,-460.0,0.00021917,2]
[367938241,1750972243455,-589.56,0.00021917,2]
[367938242,1750972243464,-460.0,0.00021917,2]
[367938243,1750972243473,-796.4,0.00021917,2]
[367938244,1750972243482,-460.0,0.00021917,2]
[367938245,1750972243492,-814.2,0.00021917,2]
[367938246,1750972243501,-849.68,0.00021917,2]
[367938247,1750972243510,-460.0,0.00021917,2]
[367938248,1750972243520,-505.31,0.00021917,2]
[367938250,1750972243530,-460.0,0.00021917,2]
[367938251,1750972243539,-731.49,0.00021917,2]
[367938253,1750972243548,-540.62,0.00021917,2]
[367938254,1750972243558,-460.0,0.00021917,2]
[367938255,1750972243567,-3571.99,0.00021917,2]
[367938256,1750972243577,-460.0,0.00021917,2]
[367938257,1750972243587,-477.93,0.00021917,2]
[367938258,1750972243596,-460.0,0.00021917,2]
[367938259,1750972243606,-460.0,0.00021917,2]
[367938260,1750972243616,-5271.94,0.00021917,2]
[367938261,1750972243625,-460.0,0.00021917,2]
[367938262,1750972243635,-474.85,0.00021917,2]
[367938263,1750972243644,-460.0,0.00021917,2]
[367938264,1750972243655,-805.1,0.00021917,2]
[367938265,1750972243664,-460.0,0.00021917,2]
[367938266,1750972243674,-460.0,0.00021917,2]
[367938267,1750972243683,-460.0,0.00021917,2]
[367938268,1750972243693,-460.0,0.00021917,2]
[367938269,1750972243704,-2400.3,0.00021917,2]
[367938270,1750972243713,-460.0,0.00021917,2]
[367938271,1750972243722,-460.0,0.00021917,2]
[367938272,1750972243732,-460.0,0.00021917,2]
[367938273,1750972243742,-460.0,0.00021917,2]
[367938274,1750972243751,-741.3,0.00021917,2]
[367938275,1750972243761,-762.78,0.00021917,2]
[367938276,1750972243771,-1591.47,0.00021917,2]
[367938277,1750972243781,-1829.59,0.00021917,2]
[367938278,1750972243791,-460.0,0.00021917,2]
[367938279,1750972243800,-1408.7,0.00021917,2]
[367938280,1750972243810,-289.911736,0.00021918,2]
[367938281,1750972243821,-150.0,0.00021918,2]
[367938282,1750972243831,-151.0,0.0002192,7]
[367938283,1750972243841,-151.0,0.0002192,7]
[367938284,1750972243850,-151.0,0.0002192,7]
[367938285,1750972243859,-1000.0,0.0002192,5]
[367938286,1750972243869,-800.0,0.00021926,2]
[367938287,1750972243878,-151.0,0.00021939,7]
[367938288,1750972243888,-151.0,0.00021939,7]
[367938289,1750972243898,-1000.0,0.0002194,5]
[367938290,1750972243907,-151.0,0.0002194,7]
[367938291,1750972243916,-151.0,0.0002194,7]
[367938292,1750972243926,-151.0,0.0002194,7]
[367938293,1750972243935,-151.0,0.0002194,7]
[367938294,1750972243945,-569.414171,0.0002194,7]
[367938295,1750972243956,-569.414171,0.0002194,7]
[367938296,1750972243966,-1000.0,0.0002196,5]
[367938297,1750972243976,-171.19469755,0.00021973,2]
[367938298,1750972243985,-450.03615033,0.00021973,2]
[367938299,1750972243995,-500.0,0.00021973,2]
[367938300,1750972244004,-500.0,0.00021973,2]
[367938301,1750972244013,-500.0,0.00021973,2]
[367938302,1750972244022,-500.0,0.00021973,2]
[367938303,1750972244032,-586.08574951,0.00021973,2]
[367938304,1750972244041,-500.0,0.00021973,2]
[367938305,1750972244051,-500.0,0.00021973,2]
[367938306,1750972244060,-500.0,0.00021973,2]
[367938307,1750972244070,-500.0,0.00021973,2]
[367938308,1750972244080,-500.0,0.00021973,2]
[367938309,1750972244089,-500.0,0.00021973,2]
[367938310,1750972244098,-500.0,0.00021973,2]
[367938311,1750972244108,-640.6587808,0.00021973,2]
[367938312,1750972244117,-500.0,0.00021973,2]
[367938313,1750972244127,-500.0,0.00021973,2]
[367938314,1750972244136,-500.0,0.00021973,2]
[367938315,1750972244146,-500.0,0.00021973,2]
[367938316,1750972244156,-500.0,0.00021973,2]
[367938317,1750972244169,-500.0,0.00021973,2]
[367938318,1750972244179,-500.0,0.00021973,2]
[367938319,1750972244188,-500.0,0.00021973,2]
[367938320,1750972244197,-500.0,0.00021973,2]
[367938321,1750972244209,-500.0,0.00021973,2]
[367938322,1750972244219,-353.80032943,0.00021973,2]
[367938323,1750972244229,-314.3743946,0.00021973,2]
[367938324,1750972244239,-500.0,0.00021973,2]
[367938325,1750972244249,-500.0,0.00021973,2]
[367938326,1750972244258,-500.0,0.00021973,2]
[367938327,1750972244268,-500.0,0.00021973,2]
[367938328,1750972244277,-500.0,0.00021973,2]
[367938329,1750972244287,-151.0,0.00021973,7]
[367938330,1750972244297,-151.0,0.00021973,7]
[367938331,1750972244307,-151.0,0.00021973,7]
[367938332,1750972244316,-823.52605338,0.00021977,2]
[367938333,1750972244326,-1000.0,0.0002198,5]
[367938334,1750972244335,-317.0,0.00021987,2]
[367938335,1750972244344,-317.0,0.00021987,2]
[367938336,1750972244354,-317.0,0.00021987,2]
[367938337,1750972244363,-317.0,0.00021987,2]
[367938338,1750972244372,-317.0,0.00021987,2]
[367938339,1750972244381,-317.0,0.00021987,2]
[367938340,1750972244390,-317.0,0.00021987,2]
[367938341,1750972244399,-317.0,0.00021987,2]
[367938342,1750972244408,-317.0,0.00021987,2]
[367938343,1750972244418,-420.9365825,0.00021987,2]
[367938344,1750972244427,-1165.0,0.00021995,22]
[367938345,1750972244436,-390.79401223,0.00021999,2]
[367938346,1750972244445,-157.39175092,0.00021999,2]
[367938347,1750972244456,-500.0,0.00021999,2]
[367938348,1750972244466,-500.0,0.00021999,2]
[367938349,1750972244475,-500.0,0.00021999,2]
[367938350,1750972244484,-500.0,0.00021999,2]
[367938351,1750972244494,-500.0,0.00021999,2]
[367938352,1750972244503,-500.0,0.00021999,2]
[367938353,1750972244513,-500.0,0.00021999,2]
[367938354,1750972244522,-500.0,0.00021999,2]
[367938355,1750972244531,-500.0,0.00021999,2]
[367938356,1750972244541,-642.04122922,0.00021999,2]
[367938357,1750972244551,-500.0,0.00021999,2]
[367938358,1750972244560,-500.0,0.00021999,2]
[367938359,1750972244570,-500.0,0.00021999,2]
[367938360,1750972244580,-500.0,0.00021999,2]
[367938361,1750972244589,-500.0,0.00021999,2]
[367938362,1750972244598,-499.99999999,0.00021999,2]
[367938363,1750972244608,-167.4831481,0.00021999,2]
[367938364,1750972244617,-281.73932182,0.00021999,2]
[367938365,1750972244627,-160.75094549,0.00022,2]
[367938366,1750972244636,-1575.28181395,0.00022,2]
[367938367,1750972244645,-500.0,0.00022,8]
[367938368,1750972244655,-500.0,0.00022,8]
[367938369,1750972244665,-257851.4809164,0.00022,2]
[367938370,1750972244844,-322036.66348224,0.00022,2]
[367938541,1750972247221,-1033.26,0.00021643,2]
[367938543,1750972247231,-460.0,0.00021643,2]
[367938545,1750972247242,-1033.26,0.00021917,2]
[367938547,1750972247252,-11854.212131,0.00022,2]
[367938613,1750972247874,-7946.6169553,0.00022,2]
[367938644,1750972248168,-160.0,0.00021643,2]
[367938646,1750972248178,-151.0,0.00021917,2]
[367938648,1750972248188,-151.0,0.00021917,2]
[367938650,1750972248198,-151.0,0.00021939,7]
[367938652,1750972248208,-151.0,0.00021939,7]
[367938654,1750972248218,-849.717789,0.00022,2]
[367938712,1750972248778,-460.0,0.00021643,2]
[367938714,1750972248789,-151.0,0.00021917,2]
[367938717,1750972248800,-594.75,0.00021917,2]
[367938734,1750972248944,-1234.05,0.0002199,10]
[367938736,1750972248962,-20.436817,0.00022,2]
[367939030,1750972251963,-44333.622924,0.00022,2]
[367941077,1750972608657,165.508446,0.00013699,2]
[367941083,1750973140245,-682.8033191,0.00020643,2]
[367941084,1750973140265,-160.0,0.0002148,2]
[367941085,1750973140285,-741.20322417,0.00021543,2]
[367941086,1750973140306,-491.774523,0.0002156,4]
[367941087,1750973140326,-207.4,0.0002163,2]
[367941088,1750973140347,-300.0,0.00021632,2]
[367941089,1750973140367,-300.0,0.00021632,2]
[367941090,1750973140387,-300.0,0.00021632,2]
[367941091,1750973140406,-378.32523769,0.00021633,2]
[367941092,1750973140427,-239.24,0.00021633,3]
[367941093,1750973140447,-290.52,0.00021633,3]
[367941094,1750973140468,-871.59,0.00021633,3]
[367941095,1750973140490,-1028.37,0.00021633,10]
[367941096,1750973140512,-856.98,0.00021633,10]
[367941097,1750973140532,-213.72380786,0.0002164,2]
[367941098,1750973140552,-230.24506774,0.0002164,2]
[367941099,1750973140573,-160.0,0.0002164,2]
[367941100,1750973140594,-836.92866116,0.0002164,2]
[367941101,1750973140614,-160.0,0.0002164,2]
[367941102,1750973140634,-183.644,0.00021642,2]
[367941103,1750973140654,-460.0,0.00021643,2]
[367941104,1750973140674,-460.0,0.00021643,2]
[367941105,1750973140694,-430.0,0.00021643,2]
[367941106,1750973140714,-460.0,0.00021643,2]
[367941107,1750973140735,-363.98763162,0.00021643,2]
[367941108,1750973140756,-460.0,0.00021643,2]
[367941109,1750973140777,-441.22791932,0.00021643,2]
[367941110,1750973140798,-171.22874577,0.00021643,2]
[367941111,1750973140818,-460.0,0.00021643,2]
[367941112,1750973140839,-402.5933611,0.00021643,2]
[367941113,1750973140859,-455.2092756,0.00021643,2]
[367941114,1750973140880,-460.0,0.00021643,2]
[367941115,1750973140901,-401.20428764,0.00021643,2]
[367941116,1750973140923,-460.0,0.00021643,2]
[367941117,1750973140946,-460.0,0.00021643,2]